fUSD/lending_fUSD_20240708
["ID","MTS","AMOUNT","RATE_DAILY","PERIOD"]
[331524368,1720446987916,-500.0,0.00052328,120]
[331524369,1720446987950,-500.0,0.00052328,120]
[331524370,1720446987983,-4098.94,0.00052328,120]
[331524371,1720446988015,-577.18,0.00052328,120]
[331524372,1720446988047,-500.0,0.00052328,120]
[331524373,1720446988079,-500.0,0.00052328,120]
[331524374,1720446988111,-721.29,0.00052328,120]
[331524375,1720446988142,-500.0,0.00052328,120]
[331524376,1720446988181,-500.0,0.00052602,120]
[331524377,1720446988214,-1534.21,0.00052602,120]
[331524378,1720446988247,-654.79,0.00052602,120]
[331524379,1720446988282,-644.98,0.00052602,120]
[331524380,1720446988314,-1159.59,0.00052602,120]
[331524381,1720446988346,-500.0,0.00052602,120]
[331524382,1720446988377,-500.0,0.00052602,120]
[331524383,1720446988411,-978.67,0.00052602,120]
[331524384,1720446988448,-500.0,0.00052602,120]
[331524385,1720446988481,-539.7,0.00052602,120]
[331524386,1720446988514,-696.38,0.00052602,120]
[331524387,1720446988548,-534.94,0.00052602,120]
[331524388,1720446988582,-500.0,0.00052602,120]
[331524389,1720446988616,-500.0,0.00052602,120]
[331524390,1720446988649,-322.19,0.00052602,120]
[331524391,1720446988684,-500.0,0.00052602,120]
[331524392,1720446988717,-675.45,0.00052602,120]
[331524393,1720446988749,-500.0,0.00052602,120]
[331524394,1720446988781,-500.0,0.00052602,120]
[331524395,1720446988812,-500.0,0.00052602,120]
[331524396,1720446988895,-500.0,0.00052602,120]
[331524397,1720446988930,-646.16,0.00052602,120]
[331524398,1720446988961,-208.50059133,0.00052602,120]
[331524399,1720446988992,-1063.67,0.00052602,120]
[331524400,1720446989023,-500.0,0.00052602,120]
[331524401,1720446989054,-633.65,0.00052602,120]
[331524402,1720446989086,-500.0,0.00052602,120]
[331524403,1720446989120,-3360.3,0.00052602,120]
[331524404,1720446989152,-500.0,0.00052602,120]
[331524405,1720446989188,-500.0,0.00052602,120]
[331524406,1720446989220,-1179.1,0.00052602,120]
[331524407,1720446989253,-166.0743438,0.00052602,120]
[331524408,1720446989287,-973.05,0.00052602,120]
[331524409,1720446989320,-521.01,0.00052602,120]
[331524410,1720446989354,-506.3,0.00052602,120]
[331524411,1720446989386,-500.0,0.00052602,120]
[331524412,1720446989420,-898.38,0.00052602,120]
[331524413,1720446989454,-500.0,0.00052602,120]
[331524414,1720446989487,-500.0,0.00052602,120]
[331524415,1720446989520,-3501.0,0.00052602,120]
[331524416,1720446989552,-500.0,0.00052602,120]
[331524417,1720446989586,-632.74,0.00052602,120]
[331524418,1720446989617,-680.16,0.00052602,120]
[331524419,1720446989649,-500.0,0.00052602,120]
[331524420,1720446989682,-500.0,0.00052602,120]
[331524421,1720446989714,-500.0,0.00052602,120]
[331524422,1720446989746,-500.0,0.00052602,120]
[331524423,1720446989778,-4098.94,0.00052602,120]
[331524424,1720446989811,-577.18,0.00052602,120]
[331524425,1720446989844,-500.0,0.00052602,120]
[331524426,1720446989876,-494.03,0.00052602,120]
[331524427,1720446989908,-721.29,0.00052602,120]
[331524428,1720446989940,-500.0,0.00052602,120]
[331524429,1720446989972,-500.0,0.00052876,120]
[331524430,1720446990003,-1534.21,0.00052876,120]
[331524431,1720446990033,-654.79,0.00052876,120]
[331524432,1720446990063,-644.98,0.00052876,120]
[331524433,1720446990093,-1159.59,0.00052876,120]
[331524434,1720446990124,-500.0,0.00052876,120]
[331524435,1720446990155,-500.0,0.00052876,120]
[331524436,1720446990185,-978.67,0.00052876,120]
[331524437,1720446990217,-500.0,0.00052876,120]
[331524438,1720446990248,-539.7,0.00052876,120]
[331524439,1720446990281,-696.38,0.00052876,120]
[331524440,1720446990312,-534.94,0.00052876,120]
[331524441,1720446990345,-500.0,0.00052876,120]
[331524442,1720446990376,-500.0,0.00052876,120]
[331524443,1720446990410,-500.0,0.00052876,120]
[331524444,1720446990443,-675.45,0.00052876,120]
[331524445,1720446990476,-500.0,0.00052876,120]
[331524446,1720446990510,-150.33780892,0.00052876,120]
[331524447,1720446990543,-500.0,0.00052876,120]
[331524448,1720446990574,-500.0,0.00052876,120]
[331524449,1720446990609,-646.16,0.00052876,120]
[331524450,1720446990640,-1063.67,0.00052876,120]
[331524451,1720446990670,-500.0,0.00052876,120]
[331524452,1720446990705,-633.65,0.00052876,120]
[331524453,1720446990738,-500.0,0.00052876,120]
[331524454,1720446990770,-3360.3,0.00052876,120]
[331524455,1720446990802,-500.0,0.00052876,120]
[331524456,1720446990833,-500.0,0.00052876,120]
[331524457,1720446990866,-1179.1,0.00052876,120]
[331524458,1720446990898,-973.05,0.00052876,120]
[331524459,1720446990935,-521.01,0.00052876,120]
[331524460,1720446990968,-506.3,0.00052876,120]
[331524461,1720446991002,-500.0,0.00052876,120]
[331524462,1720446991036,-898.38,0.00052876,120]
[331524463,1720446991069,-500.0,0.00052876,120]
[331524464,1720446991101,-500.0,0.00052876,120]
[331524465,1720446991134,-3501.0,0.00052876,120]
[331524466,1720446991167,-500.0,0.00052876,120]
[331524467,1720446991212,-632.74,0.00052876,120]
[331524468,1720446991248,-680.16,0.00052876,120]
[331524469,1720446991285,-500.0,0.00052876,120]
[331524470,1720446991323,-500.0,0.00052876,120]
[331524471,1720446991360,-500.0,0.00052876,120]
[331524472,1720446992362,-500.0,0.00052876,120]
[331524473,1720446992402,-4098.94,0.00052876,120]
[331524474,1720446992437,-577.18,0.00052876,120]
[331524475,1720446992470,-500.0,0.00052876,120]
[331524476,1720446992504,-721.29,0.00052876,120]
[331524477,1720446992538,-500.0,0.00052876,120]
[331524478,1720446992571,-500.0,0.0005315,120]
[331524479,1720446992604,-1534.21,0.0005315,120]
[331524480,1720446992635,-654.79,0.0005315,120]
[331524481,1720446992667,-644.98,0.0005315,120]
[331524482,1720446992699,-1159.59,0.0005315,120]
[331524483,1720446992731,-543.72583933,0.0005315,120]
[331524484,1720446992764,-614.33459633,0.0005315,120]
[331524485,1720446992797,-978.67,0.0005315,120]
[331524486,1720446992828,-500.0,0.0005315,120]
[331524487,1720446992860,-539.7,0.0005315,120]
[331524488,1720446992891,-696.38,0.0005315,120]
[331524489,1720446992921,-534.94,0.0005315,120]
[331524490,1720446992957,-500.0,0.0005315,120]
[331524491,1720446992988,-500.0,0.0005315,120]
[331524492,1720446993019,-644.69,0.0005315,120]
[331524493,1720446993050,-675.45,0.0005315,120]
[331524494,1720446993082,-500.0,0.0005315,120]
[331524495,1720446993112,-500.0,0.0005315,120]
[331524496,1720446993142,-500.0,0.0005315,120]
[331524497,1720446993175,-646.16,0.0005315,120]
[331524498,1720446993214,-1063.67,0.0005315,120]
[331524499,1720446993245,-500.0,0.0005315,120]
[331524500,1720446993282,-633.65,0.0005315,120]
[331524501,1720446993316,-500.0,0.0005315,120]
[331524502,1720446993350,-3360.3,0.0005315,120]
[331524503,1720446993383,-500.0,0.0005315,120]
[331524504,1720446993417,-500.0,0.0005315,120]
[331524505,1720446993453,-1179.1,0.0005315,120]
[331524506,1720446993489,-973.05,0.0005315,120]
[331524507,1720446993525,-521.01,0.0005315,120]
[331524508,1720446993561,-506.3,0.0005315,120]
[331524509,1720446993597,-500.0,0.0005315,120]
[331524510,1720446993631,-898.38,0.0005315,120]
[331524511,1720446993667,-500.0,0.0005315,120]
[331524512,1720446993705,-500.0,0.0005315,120]
[331524513,1720446993740,-3501.0,0.0005315,120]
[331524514,1720446993773,-500.0,0.0005315,120]
[331524515,1720446993807,-632.74,0.0005315,120]
[331524516,1720446993841,-680.16,0.0005315,120]
[331524517,1720446993875,-500.0,0.0005315,120]
[331524518,1720446993908,-500.0,0.0005315,120]
[331524519,1720446993943,-500.0,0.0005315,120]
[331524520,1720446993976,-500.0,0.0005315,120]
[331524521,1720446994010,-4098.94,0.0005315,120]
[331524522,1720446994044,-577.18,0.0005315,120]
[331524523,1720446994077,-500.0,0.0005315,120]
[331524524,1720446994112,-721.29,0.0005315,120]
[331524525,1720446994149,-326.12097201,0.00053424,120]
[331524526,1720446994187,-1534.21,0.00053424,120]
[331524527,1720446994221,-654.79,0.00053424,120]
[331524528,1720446994256,-644.98,0.00053424,120]
[331524529,1720446994291,-1159.59,0.00053424,120]
[331524530,1720446994326,-978.67,0.00053424,120]
[331524531,1720446994360,-500.0,0.00053424,120]
[331524532,1720446994396,-539.7,0.00053424,120]
[331524533,1720446994435,-696.38,0.00053424,120]
[331524534,1720446994471,-534.94,0.00053424,120]
[331524535,1720446994508,-500.0,0.00053424,120]
[331524536,1720446994545,-500.0,0.00053424,120]
[331524537,1720446994581,-675.45,0.00053424,120]
[331524538,1720446994621,-500.0,0.00053424,120]
[331524539,1720446994656,-500.0,0.00053424,120]
[331524540,1720446994690,-500.0,0.00053424,120]
[331524541,1720446994723,-646.16,0.00053424,120]
[331524542,1720446994756,-1063.67,0.00053424,120]
[331524543,1720446994788,-500.0,0.00053424,120]
[331524544,1720446994823,-633.65,0.00053424,120]
[331524545,1720446994857,-500.0,0.00053424,120]
[331524546,1720446994891,-3360.3,0.00053424,120]
[331524547,1720446994926,-500.0,0.00053424,120]
[331524548,1720446994966,-500.0,0.00053424,120]
[331524549,1720446995002,-1179.1,0.00053424,120]
[331524550,1720446995037,-973.05,0.00053424,120]
[331524551,1720446995070,-521.01,0.00053424,120]
[331524552,1720446995103,-506.3,0.00053424,120]
[331524553,1720446995145,-348.33732828,0.00053424,120]
[331524554,1720446995184,-898.38,0.00053424,120]
[331524555,1720446995219,-500.0,0.00053424,120]
[331524556,1720446995252,-500.0,0.00053424,120]
[331524557,1720446995287,-3501.0,0.00053424,120]
[331524558,1720446995321,-500.0,0.00053424,120]
[331524559,1720446995356,-632.74,0.00053424,120]
[331524560,1720446995391,-680.16,0.00053424,120]
[331524561,1720446995427,-500.0,0.00053424,120]
[331524562,1720446995466,-500.0,0.00053424,120]
[331524563,1720446995500,-500.0,0.00053424,120]
[331524564,1720446995534,-500.0,0.00053424,120]
[331524565,1720446995570,-4098.94,0.00053424,120]
[331524566,1720446995606,-577.18,0.00053424,120]
[331524567,1720446995640,-500.0,0.00053424,120]
[331524568,1720446995895,-721.29,0.00053424,120]
[331524569,1720446995931,-1534.21,0.00053698,120]
[331524570,1720446995964,-654.79,0.00053698,120]
[331524571,1720446995998,-644.98,0.00053698,120]
[331524572,1720446996032,-1159.59,0.00053698,120]
[331524573,1720446996065,-978.67,0.00053698,120]
[331524574,1720446996097,-500.0,0.00053698,120]
[331524575,1720446996129,-539.7,0.00053698,120]
[331524576,1720446996162,-696.38,0.00053698,120]
[331524577,1720446996200,-534.94,0.00053698,120]
[331524578,1720446996233,-500.0,0.00053698,120]
[331524579,1720446996264,-348.93868141,0.00053698,120]
[331524580,1720446996296,-675.45,0.00053698,120]
[331524581,1720446996328,-500.0,0.00053698,120]
[331524582,1720446996360,-500.0,0.00053698,120]
[331524583,1720446996390,-282.88,0.00053698,120]
[331524584,1720446996420,-646.16,0.00053698,120]
[331524585,1720446996452,-1063.67,0.00053698,120]
[331524586,1720446996484,-500.0,0.00053698,120]
[331524587,1720446996515,-633.65,0.00053698,120]
[331524588,1720446996547,-500.0,0.00053698,120]
[331524589,1720446996579,-3360.3,0.00053698,120]
[331524590,1720446996611,-500.0,0.00053698,120]
[331524591,1720446996645,-500.0,0.00053698,120]
[331524592,1720446996678,-1179.1,0.00053698,120]
[331524593,1720446996716,-973.05,0.00053698,120]
[331524594,1720446996747,-521.01,0.00053698,120]
[331524595,1720446996780,-506.3,0.00053698,120]
[331524596,1720446996812,-898.38,0.00053698,120]
[331524597,1720446996844,-500.0,0.00053698,120]
[331524598,1720446996876,-500.0,0.00053698,120]
[331524599,1720446996907,-159.76,0.00053698,120]
[331524600,1720446996937,-500.0,0.00053698,120]
[331524601,1720446996968,-632.74,0.00053698,120]
[331524602,1720446996999,-680.16,0.00053698,120]
[331524603,1720446997031,-500.0,0.00053698,120]
[331524604,1720446997063,-500.0,0.00053698,120]
[331524605,1720446997096,-194.01,0.00053698,120]
[331524606,1720446997129,-500.0,0.00053698,120]
[331524607,1720446997162,-4098.94,0.00053698,120]
[331524608,1720446997203,-577.18,0.00053698,120]
[331524609,1720446997238,-500.0,0.00053698,120]
[331524610,1720446997273,-721.29,0.00053698,120]
[331524611,1720446997310,-1534.21,0.00053972,120]
[331524612,1720446997342,-654.79,0.00053972,120]
[331524613,1720446997374,-644.98,0.00053972,120]
[331524614,1720446997405,-1159.59,0.00053972,120]
[331524615,1720446997439,-978.67,0.00053972,120]
[331524616,1720446997470,-500.0,0.00053972,120]
[331524617,1720446997502,-539.7,0.00053972,120]
[331524618,1720446997533,-696.38,0.00053972,120]
[331524619,1720446997565,-534.94,0.00053972,120]
[331524620,1720446997600,-500.0,0.00053972,120]
[331524621,1720446997635,-675.45,0.00053972,120]
[331524622,1720446997669,-500.0,0.00053972,120]
[331524623,1720446997708,-500.0,0.00053972,120]
[331524624,1720446997739,-646.16,0.00053972,120]
[331524625,1720446997770,-1063.67,0.00053972,120]
[331524626,1720446997802,-500.0,0.00053972,120]
[331524627,1720446997834,-633.65,0.00053972,120]
[331524628,1720446997866,-500.0,0.00053972,120]
[331524629,1720446997899,-3360.3,0.00053972,120]
[331524630,1720446997931,-500.0,0.00053972,120]
[331524631,1720446997964,-500.0,0.00053972,120]
[331524632,1720446997996,-1179.1,0.00053972,120]
[331524633,1720446998028,-973.05,0.00053972,120]
[331524634,1720446998060,-521.01,0.00053972,120]
[331524635,1720446998091,-506.3,0.00053972,120]
[331524636,1720446998123,-898.38,0.00053972,120]
[331524637,1720446998154,-447.54,0.00053972,120]
[331524638,1720446998243,-500.0,0.00053972,120]
[331524639,1720446998277,-500.0,0.00053972,120]
[331524640,1720446998311,-632.74,0.00053972,120]
[331524641,1720446998345,-680.16,0.00053972,120]
[331524642,1720446998377,-287.97785181,0.00053972,120]
[331524643,1720446998412,-500.0,0.00053972,120]
[331524644,1720446998446,-500.0,0.00053972,120]
[331524645,1720446998481,-4098.94,0.00053972,120]
[331524646,1720446998516,-577.18,0.00053972,120]
[331524647,1720446998550,-500.0,0.00053972,120]
[331524648,1720446998583,-721.29,0.00053972,120]
[331524649,1720446998621,-1534.21,0.00054246,120]
[331524650,1720446998656,-654.79,0.00054246,120]
[331524651,1720446998690,-644.98,0.00054246,120]
[331524652,1720446998721,-1159.59,0.00054246,120]
[331524653,1720446998754,-978.67,0.00054246,120]
[331524654,1720446998785,-500.0,0.00054246,120]
[331524655,1720446998817,-539.7,0.00054246,120]
[331524656,1720446998849,-696.38,0.00054246,120]
[331524657,1720446998881,-534.94,0.00054246,120]
[331524658,1720446998912,-558.48,0.00054246,120]
[331524659,1720446998944,-675.45,0.00054246,120]
[331524660,1720446998976,-500.0,0.00054246,120]
[331524661,1720446999008,-500.0,0.00054246,120]
[331524662,1720446999041,-646.16,0.00054246,120]
[331524663,1720446999075,-1063.67,0.00054246,120]
[331524664,1720446999110,-500.0,0.00054246,120]
[331524665,1720446999146,-633.65,0.00054246,120]
[331524666,1720446999182,-516.59780165,0.00054246,120]
[331524667,1720446999218,-3360.3,0.00054246,120]
[331524668,1720446999254,-352.21,0.00054246,120]
[331524669,1720446999291,-500.0,0.00054246,120]
[331524670,1720446999327,-1179.1,0.00054246,120]
[331524671,1720446999365,-521.01,0.00054246,120]
[331524672,1720446999402,-973.05,0.00054246,120]
[331524673,1720446999440,-506.3,0.00054246,120]
[331524674,1720446999476,-898.38,0.00054246,120]
[331524675,1720446999512,-500.0,0.00054246,120]
[331524676,1720446999546,-500.0,0.00054246,120]
[331524677,1720446999581,-632.74,0.00054246,120]
[331524678,1720446999617,-680.16,0.00054246,120]
[331524679,1720446999653,-500.0,0.00054246,120]
[331524680,1720446999688,-500.0,0.00054246,120]
[331524681,1720446999725,-4098.94,0.00054246,120]
[331524682,1720446999770,-577.18,0.00054246,120]
[331524683,1720446999806,-500.0,0.00054246,120]
[331524684,1720446999841,-721.29,0.00054246,120]
[331524685,1720446999877,-500.0,0.0005452,120]
[331524686,1720446999910,-1534.21,0.0005452,120]
[331524687,1720446999943,-654.79,0.0005452,120]
[331524688,1720446999977,-644.98,0.0005452,120]
[331524689,1720447000010,-1159.59,0.0005452,120]
[331524690,1720447000044,-978.67,0.0005452,120]
[331524691,1720447000078,-528.62191966,0.0005452,120]
[331524692,1720447000112,-539.7,0.0005452,120]
[331524693,1720447000148,-696.38,0.0005452,120]
[331524694,1720447000185,-534.94,0.0005452,120]
[331524695,1720447000218,-675.45,0.0005452,120]
[331524696,1720447000253,-384.85,0.0005452,120]
[331524697,1720447000288,-500.0,0.0005452,120]
[331524698,1720447000322,-646.16,0.0005452,120]
[331524699,1720447000353,-1063.67,0.0005452,120]
[331524700,1720447000385,-500.0,0.0005452,120]
[331524701,1720447000417,-633.65,0.0005452,120]
[331524702,1720447000451,-3360.3,0.0005452,120]
[331524703,1720447000484,-533.02,0.0005452,120]
[331524704,1720447000520,-1179.1,0.0005452,120]
[331524705,1720447000556,-521.01,0.0005452,120]
[331524706,1720447000591,-973.05,0.0005452,120]
[331524707,1720447000626,-506.3,0.0005452,120]
[331524708,1720447000660,-898.38,0.0005452,120]
[331524709,1720447000696,-500.0,0.0005452,120]
[331524710,1720447000729,-500.0,0.0005452,120]
[331524711,1720447000763,-632.74,0.0005452,120]
[331524712,1720447000797,-680.16,0.0005452,120]
[331524713,1720447000831,-500.0,0.0005452,120]
[331524714,1720447000865,-500.0,0.0005452,120]
[331524715,1720447000898,-4098.94,0.0005452,120]
[331524716,1720447000930,-577.18,0.0005452,120]
[331524717,1720447000963,-500.0,0.0005452,120]
[331524718,1720447000995,-721.29,0.0005452,120]
[331524719,1720447001028,-500.0,0.00054794,120]
[331524720,1720447001060,-1534.21,0.00054794,120]
[331524721,1720447001093,-654.79,0.00054794,120]
[331524722,1720447001125,-644.98,0.00054794,120]
[331524723,1720447001157,-1159.59,0.00054794,120]
[331524724,1720447001190,-978.67,0.00054794,120]
[331524725,1720447001222,-539.7,0.00054794,120]
[331524726,1720447001255,-696.38,0.00054794,120]
[331524727,1720447001287,-534.94,0.00054794,120]
[331524728,1720447001319,-675.45,0.00054794,120]
[331524729,1720447001350,-646.16,0.00054794,120]
[331524730,1720447001382,-1063.67,0.00054794,120]
[331524731,1720447001414,-500.0,0.00054794,120]
[331524732,1720447001448,-633.65,0.00054794,120]
[331524733,1720447001480,-3360.3,0.00054794,120]
[331524734,1720447001513,-1179.1,0.00054794,120]
[331524735,1720447001545,-973.05,0.00054794,120]
[331524736,1720447001579,-521.01,0.00054794,120]
[331524737,1720447001616,-506.3,0.00054794,120]
[331524738,1720447001652,-898.38,0.00054794,120]
[331524739,1720447001693,-527.30553699,0.00054794,120]
[331524740,1720447001726,-569.34559618,0.00054794,120]
[331524741,1720447001758,-632.74,0.00054794,120]
[331524742,1720447001793,-680.16,0.00054794,120]
[331524743,1720447001825,-500.0,0.00054794,120]
[331524744,1720447001859,-500.0,0.00054794,120]
[331524745,1720447001893,-4098.94,0.00054794,120]
[331524746,1720447001926,-577.18,0.00054794,120]
[331524747,1720447001966,-500.0,0.00054794,120]
[331524748,1720447001998,-500.0,0.00054794,120]
[331524749,1720447002031,-721.29,0.00054794,120]
[331524750,1720447002064,-151.0,0.00055,120]
[331524751,1720447002095,-151.0,0.00055,120]
[331524752,1720447002128,-500.0,0.00055068,120]
[331524753,1720447002161,-1534.21,0.00055068,120]
[331524754,1720447002194,-654.79,0.00055068,120]
[331524755,1720447002227,-644.98,0.00055068,120]
[331524756,1720447002260,-1159.59,0.00055068,120]
[331524757,1720447002294,-978.67,0.00055068,120]
[331524758,1720447002327,-539.7,0.00055068,120]
[331524759,1720447002360,-696.38,0.00055068,120]
[331524760,1720447002391,-534.94,0.00055068,120]
[331524761,1720447002424,-675.45,0.00055068,120]
[331524762,1720447002460,-646.16,0.00055068,120]
[331524763,1720447002494,-1063.67,0.00055068,120]
[331524764,1720447002526,-622.28563474,0.00055068,120]
[331524765,1720447002558,-633.65,0.00055068,120]
[331524766,1720447002591,-3360.3,0.00055068,120]
[331524767,1720447002624,-1179.1,0.00055068,120]
[331524768,1720447002657,-973.05,0.00055068,120]
[331524769,1720447002690,-521.01,0.00055068,120]
[331524770,1720447002724,-506.3,0.00055068,120]
[331524771,1720447002758,-898.38,0.00055068,120]
[331524772,1720447002791,-632.74,0.00055068,120]
[331524773,1720447002823,-680.16,0.00055068,120]
[331524774,1720447002857,-500.0,0.00055068,120]
[331524775,1720447002892,-4098.94,0.00055068,120]
[331524776,1720447002927,-577.18,0.00055068,120]
[331524777,1720447002964,-591.40679816,0.00055068,120]
[331524778,1720447002999,-721.29,0.00055068,120]
[331524779,1720447003034,-169.07034027,0.00055342,120]
[331524780,1720447003070,-1534.21,0.00055342,120]
[331524781,1720447003107,-654.79,0.00055342,120]
[331524782,1720447003142,-644.98,0.00055342,120]
[331524783,1720447003186,-1159.59,0.00055342,120]
[331524784,1720447003231,-978.67,0.00055342,120]
[331524785,1720447003270,-539.7,0.00055342,120]
[331524786,1720447003308,-696.38,0.00055342,120]
[331524787,1720447003342,-534.94,0.00055342,120]
[331524788,1720447003377,-675.45,0.00055342,120]
[331524789,1720447003414,-646.16,0.00055342,120]
[331524790,1720447003450,-1063.67,0.00055342,120]
[331524791,1720447003487,-633.65,0.00055342,120]
[331524792,1720447003526,-3360.3,0.00055342,120]
[331524793,1720447003564,-1179.1,0.00055342,120]
[331524794,1720447003599,-973.05,0.00055342,120]
[331524795,1720447003637,-521.01,0.00055342,120]
[331524796,1720447003674,-506.3,0.00055342,120]
[331524797,1720447003713,-898.38,0.00055342,120]
[331524798,1720447003747,-632.74,0.00055342,120]
[331524799,1720447003783,-680.16,0.00055342,120]
[331524800,1720447003818,-500.0,0.00055342,120]
[331524801,1720447004035,-4098.94,0.00055342,120]
[331524802,1720447004084,-577.18,0.00055342,120]
[331524803,1720447004121,-1534.37293251,0.00055616,120]
[331524804,1720447004157,-655.02554149,0.00055616,120]
[331524805,1720447004195,-645.18637835,0.00055616,120]
[331524806,1720447004228,-1159.78138296,0.00055616,120]
[331524807,1720447004263,-978.79,0.00055616,120]
[331524808,1720447004298,-539.81,0.00055616,120]
[331524809,1720447004331,-696.56483539,0.00055616,120]
[331524810,1720447004366,-535.03402496,0.00055616,120]
[331524811,1720447004401,-675.6,0.00055616,120]
[331524812,1720447004436,-646.39,0.00055616,120]
[331524813,1720447004471,-1063.75107607,0.00055616,120]
[331524814,1720447004504,-633.65721071,0.00055616,120]
[331524815,1720447004538,-3360.34912527,0.00055616,120]
[331524816,1720447004575,-1179.26474196,0.00055616,120]
[331524817,1720447004608,-973.12948778,0.00055616,120]
[331524818,1720447004641,-521.20853001,0.00055616,120]
[331524819,1720447004674,-506.34646026,0.00055616,120]
[331524820,1720447004711,-898.4829928,0.00055616,120]
[331524821,1720447004744,-632.83959127,0.00055616,120]
[331524822,1720447004777,-680.18763243,0.00055616,120]
[331524823,1720447004812,-263.21259144,0.00055616,120]
[331524824,1720447004847,-4098.94,0.00055616,120]
[331524825,1720447004880,-577.33,0.00055616,120]
[331524826,1720447004913,-151.0,0.00057,120]
[331524827,1720447004946,-151.0,0.00057,120]
[331524828,1720447004979,-151.0,0.00057,120]
[331524829,1720447005013,-151.0,0.00058,120]
[331524830,1720447005048,-500.0,0.000592,120]
[331524831,1720447005079,-500.0,0.00059454,120]
[331524832,1720447005111,-200.0,0.00059999,120]
[331524833,1720447005142,-327.628131,0.0006,120]
[331524834,1720447005176,-73741.91661355,0.00062469,120]
[331524835,1720447005213,-151.070816,0.00062498,119]
[331524836,1720447005245,-6830.1560882,0.000625,65]
[331524837,1720447005277,-10000.0,0.000625,90]
[331524838,1720447005311,-151.0,0.00062685,120]
[331524839,1720447005346,-151.070816,0.00062798,119]
[331524840,1720447005380,-151.0,0.00062822,120]
[331524841,1720447005412,-755951.20712491,0.000629,30]
[331524842,1720447005447,-1000.0,0.00062999,120]
[331524843,1720447005482,-1040.0,0.00063,120]
[331524844,1720447005517,-1000.0,0.00063,120]
[331524845,1720447005552,-1000.0,0.00063,120]
[331524846,1720447005585,-1000.0,0.00063,120]
[331524847,1720447005618,-1000.0,0.00063,120]
[331524848,1720447005651,-1000.0,0.00063,120]
[331524849,1720447005691,-1000.0,0.00063,120]
[331524850,1720447005723,-1000.0,0.00063,120]
[331524851,1720447005755,-731.19,0.00063,120]
[331524852,1720447005785,-1000.0,0.00063,120]
[331524853,1720447005816,-1000.0,0.00063,120]
[331524854,1720447005846,-1000.0,0.00063,120]
[331524855,1720447005876,-1000.0,0.00063,120]
[331524856,1720447005906,-1000.0,0.00063,120]
[331524857,1720447005936,-221.29,0.00063,120]
[331524858,1720447005968,-1057.576002,0.00063,30]
[331524859,1720447005998,-1002.39,0.00063,120]
[331524860,1720447006028,-10000.0,0.00063,120]
[331524861,1720447006058,-1002.14,0.00063,120]
[331524862,1720447006088,-684.27917047,0.00063,120]
[331524863,1720447006120,-1003.78,0.00063,120]
[331524864,1720447006151,-764.0,0.00063,30]
[331524865,1720447006182,-330.7171232,0.00063,30]
[331524866,1720447006214,-2035.02,0.00063013,120]
[331524867,1720447006247,-863.9504515,0.0006305,120]